fUST/lending_fUST_20250420
["ID","MTS","AMOUNT","RATE_DAILY","PERIOD"]
[358409937,1745088648631,-500.0,0.00019452,2]
[358409938,1745088648641,-500.0,0.00019452,2]
[358409939,1745088648651,-1549.04,0.00019452,2]
[358409940,1745088648661,-500.0,0.00019452,2]
[358409941,1745088648671,-757.81,0.00019452,2]
[358409942,1745088648680,-500.0,0.00019452,2]
[358409943,1745088648691,-863.8,0.00019452,2]
[358409944,1745088648700,-500.0,0.00019452,2]
[358409945,1745088648710,-500.0,0.00019452,2]
[358409946,1745088648719,-500.0,0.00019452,2]
[358409947,1745088648729,-560.48,0.00019452,2]
[358409948,1745088648739,-547.97,0.00019452,2]
[358409949,1745088648749,-500.0,0.00019452,2]
[358409950,1745088648759,-500.0,0.00019452,2]
[358409951,1745088648768,-1091.88,0.00019452,2]
[358409952,1745088648778,-500.0,0.00019452,2]
[358409953,1745088648787,-262.71560183,0.00019452,2]
[358409954,1745088649004,-237.28439817,0.00019452,2]
[358409955,1745088649014,-500.0,0.00019452,2]
[358409956,1745088649024,-843.88,0.00019452,2]
[358409957,1745088649034,-500.0,0.00019452,2]
[358409958,1745088649044,-1000.0,0.00019452,2]
[358409959,1745088649053,-500.0,0.00019452,2]
[358409960,1745088649063,-500.0,0.00019452,2]
[358409961,1745088649072,-500.0,0.00019452,2]
[358409962,1745088649082,-326.28224205,0.00019452,2]
[358409963,1745088649282,-214.25775795,0.00019452,2]
[358409964,1745088649292,-500.0,0.00019452,2]
[358409965,1745088649301,-645.68,0.00019452,2]
[358409966,1745088649312,-500.0,0.00019452,2]
[358409967,1745088649322,-1397.07,0.00019452,2]
[358409968,1745088649331,-500.0,0.00019452,2]
[358409969,1745088649341,-500.0,0.00019452,2]
[358409970,1745088649351,-736.65,0.00019452,2]
[358409971,1745088649361,-501.35,0.00019452,2]
[358409972,1745088649370,-2655.61,0.00019452,2]
[358409973,1745088649380,-500.0,0.00019452,2]
[358409974,1745088649390,-500.0,0.00019452,2]
[358409975,1745088649400,-500.0,0.00019452,2]
[358409976,1745088649409,-500.0,0.00019452,2]
[358409977,1745088649419,-2939.86,0.00019452,2]
[358409978,1745088649429,-500.0,0.00019452,2]
[358409979,1745088649439,-500.0,0.00019452,2]
[358409980,1745088649449,-500.0,0.00019452,2]
[358409981,1745088649458,-581.47,0.00019452,2]
[358409982,1745088649468,-500.0,0.00019452,2]
[358409983,1745088649478,-1030.89,0.00019452,2]
[358409984,1745088649488,-500.0,0.00019452,2]
[358409985,1745088649500,-500.0,0.00019452,2]
[358409986,1745088649510,-922.62,0.00019452,2]
[358409987,1745088649520,-916.61,0.00019452,2]
[358409988,1745088649530,-500.0,0.00019452,2]
[358409989,1745088649539,-500.0,0.00019452,2]
[358409990,1745088649548,-500.0,0.00019452,2]
[358409991,1745088649557,-572.92,0.00019452,2]
[358409992,1745088649566,-500.0,0.00019452,2]
[358409993,1745088649577,-176.85623151,0.00019452,2]
[358409994,1745088649587,-500.0,0.00019452,2]
[358409995,1745088649596,-2245.38,0.00019452,2]
[358409996,1745088649606,-500.0,0.00019452,2]
[358409997,1745088649615,-500.0,0.00019452,2]
[358409998,1745088649625,-500.0,0.00019452,2]
[358409999,1745088649635,-500.0,0.00019452,2]
[358410000,1745088649645,-1147.25,0.00019452,2]
[358410001,1745088649654,-500.0,0.00019452,2]
[358410002,1745088649663,-751.95,0.00019452,2]
[358410003,1745088649672,-500.0,0.00019452,2]
[358410004,1745088649681,-500.0,0.00019452,2]
[358410005,1745088649691,-500.0,0.00019452,2]
[358410006,1745088649700,-4865.4,0.00019452,2]
[358410007,1745088649709,-500.0,0.00019452,2]
[358410008,1745088649719,-500.0,0.00019452,2]
[358410009,1745088649729,-500.0,0.00019452,2]
[358410010,1745088649738,-500.0,0.00019452,2]
[358410011,1745088649748,-500.0,0.00019452,2]
[358410012,1745088649757,-771.02,0.00019452,2]
[358410013,1745088649767,-500.0,0.00019452,2]
[358410014,1745088649777,-500.0,0.00019452,2]
[358410015,1745088649786,-500.0,0.00019452,2]
[358410016,1745088649796,-9705.02,0.00019452,2]
[358410017,1745088649806,-680.2,0.00019452,2]
[358410018,1745088649816,-1262.12,0.00019452,2]
[358410019,1745088649826,-5551.08,0.00019452,2]
[358410020,1745088649835,-511.81,0.00019452,2]
[358410021,1745088649845,-500.0,0.00019452,2]
[358410022,1745088649854,-500.0,0.00019452,2]
[358410023,1745088649863,-916.02,0.00019452,2]
[358410024,1745088649873,-500.0,0.00019452,2]
[358410025,1745088649882,-1219.28,0.00019452,2]
[358410026,1745088649891,-15076.81,0.00019452,2]
[358410027,1745088649901,-500.0,0.00019452,2]
[358410028,1745088649910,-500.0,0.00019452,2]
[358410029,1745088649919,-691.39,0.00019452,2]
[358410030,1745088649930,-500.0,0.00019452,2]
[358410031,1745088649941,-782.67,0.00019452,2]
[358410032,1745088649952,-500.0,0.00019452,2]
[358410033,1745088649963,-500.0,0.00019452,2]
[358410034,1745088649972,-673.62,0.00019452,2]
[358410035,1745088649982,-533.15,0.00019452,2]
[358410036,1745088649991,-500.0,0.00019452,2]
[358410037,1745088650002,-500.0,0.00019452,2]
[358410038,1745088650011,-500.0,0.00019452,2]
[358410039,1745088650021,-509.72,0.00019452,2]
[358410040,1745088650030,-500.73937476,0.00019473,2]
[358410041,1745088650040,-500.0,0.00019473,2]
[358410042,1745088650049,-504.38493982,0.00019473,2]
[358410043,1745088650059,-501.57283112,0.00019473,2]
[358410044,1745088650068,-500.0,0.00019473,2]
[358410045,1745088650078,-500.0,0.00019473,2]
[358410046,1745088650087,-501.54807843,0.00019473,2]
[358410047,1745088650097,-500.0,0.00019473,2]
[358410048,1745088650107,-500.0,0.00019473,2]
[358410049,1745088650116,-500.0,0.00019473,2]
[358410050,1745088650126,-243.97155435,0.00019473,2]
[358410051,1745088650135,-500.0,0.00019473,2]
[358410052,1745088650144,-500.0,0.00019473,2]
[358410053,1745088650153,-500.0,0.00019473,2]
[358410054,1745088650162,-500.0,0.00019473,2]
[358410055,1745088650172,-499.64,0.00019473,2]
[358410056,1745088650182,-157.50122126,0.00019473,2]
[358410057,1745088650257,-305.21753407,0.00019,2]
[358410058,1745088650269,-252.63777654,0.00019,2]
[358410059,1745088650281,-442.14468939,0.00019,2]
[358410060,1745088650291,-342.49877874,0.00019473,2]
[358410061,1745088650301,-500.0,0.00019473,2]
[358410062,1745088650310,-500.0,0.00019473,2]
[358410063,1745088650319,-500.0,0.00019473,2]
[358410064,1745088650328,-500.0,0.00019473,2]
[358410065,1745088650338,-507.8664772,0.00019473,2]
[358410066,1745088650347,-300.0,0.00019473,2]
[358410067,1745088650358,-500.0,0.00019473,2]
[358410068,1745088650368,-500.0,0.00019473,2]
[358410069,1745088650377,-536.51387392,0.00019473,2]
[358410070,1745088650386,-500.0,0.00019473,2]
[358410071,1745088650530,-435.25530178,0.00019473,2]
[358410072,1745088650541,-501.98168086,0.00019473,2]
[358410073,1745088650550,-259.35233976,0.00019473,2]
[358410074,1745088650559,-165.61349575,0.00019473,2]
[358410075,1745088650569,-322.30345611,0.00019473,2]
[358410076,1745088650633,-78.25098446,0.00019473,2]
[358410077,1745088650642,-501.18585351,0.00019473,2]
[358410078,1745088650651,-161.44071507,0.00019473,2]
[358410079,1745088650661,-185.644865,0.00019473,2]
[358410080,1745088650670,-456.64688932,0.00019473,2]
[358410081,1745088650680,-500.0,0.00019473,2]
[358410082,1745088650689,-500.0,0.00019473,2]
[358410083,1745088650698,-542.55119703,0.00019473,2]
[358410084,1745088650706,-500.0,0.00019473,2]
[358410085,1745088650714,-500.0,0.00019473,2]
[358410086,1745088650724,-500.01363245,0.00019473,2]
[358410087,1745088650734,-500.0,0.00019473,2]
[358410088,1745088650743,-253.87144997,0.00019473,2]
[358410089,1745088650752,-269.83241215,0.00019473,2]
[358410090,1745088650761,-500.0,0.00019473,2]
[358410091,1745088650770,-500.0,0.00019473,2]
[358410092,1745088650780,-500.0,0.00019473,2]
[358410093,1745088650789,-500.0,0.00019473,2]
[358410094,1745088650799,-500.0,0.00019473,2]
[358410095,1745088650808,-422.45501239,0.00019473,2]
[358410096,1745088650818,-500.0,0.00019473,2]
[358410097,1745088650827,-500.97274281,0.00019473,2]
[358410098,1745088650837,-3650.33225443,0.00019479,2]
[358410099,1745088650846,-2000.0,0.000195,30]
[358410100,1745088650856,-1000.0,0.000195,2]
[358410101,1745088650866,-245.0,0.00019589,2]
[358410102,1745088650876,-207.01955076,0.00019589,2]
[358410103,1745088650886,-297.52127486,0.00019589,2]
[358410104,1745088650896,-500.0,0.00019589,2]
[358410105,1745088650905,-151.0,0.000197,2]
[358410106,1745088650915,-500.0,0.00019726,2]
[358410107,1745088650924,-500.0,0.00019726,2]
[358410108,1745088650933,-446.08748036,0.00019726,2]
[358410121,1745088944787,23479.9042333,0.0001807,2]
[358410152,1745089331580,546.687943,0.0001795,2]
[358410172,1745089466797,233.36227,0.00017939,2]
[358410184,1745089831687,-1418.7724716,0.0001815,2]
[358410185,1745089831697,-349.7781576,0.00018153,2]
[358410186,1745089831707,-1075.19353249,0.00018762,2]
[358410187,1745089831716,-1845.82441824,0.00018865,2]
[358410188,1745089831725,-498.05175966,0.0001889,2]
[358410189,1745089831735,-650.62378038,0.000189,2]
[358410190,1745089831745,-500.0,0.00018904,2]
[358410191,1745089831755,-498.05175966,0.00018909,2]
[358410192,1745089831764,-498.05175966,0.00018928,2]
[358410193,1745089831773,-498.05175966,0.00018946,2]
[358410194,1745089831783,-300.0,0.00018964,2]
[358410195,1745089831792,-300.0,0.00018964,2]
[358410196,1745089831801,-31699.84332502,0.00018965,2]
[358410198,1745089831817,-8465.13556734,0.00018965,2]
[358410204,1745089837908,-500.0,0.00018964,2]
[358410205,1745089837918,-500.0,0.00018964,2]
[358410206,1745089837928,-500.0,0.00018964,2]
[358410207,1745089837938,-500.0,0.00018964,2]
[358410208,1745089837948,-500.0,0.00018964,2]
[358410209,1745089837958,-500.0,0.00018964,2]
[358410210,1745089837968,-500.0,0.00018964,2]
[358410211,1745089837978,-500.0,0.00018964,2]
[358410212,1745089837988,-382.70692903,0.00018964,2]
[358410213,1745089837998,-500.0,0.00018964,2]
[358410214,1745089838007,-500.0,0.00018964,2]
[358410215,1745089838017,-500.0,0.00018964,2]
[358410216,1745089838027,-500.0,0.00018964,2]
[358410217,1745089838037,-500.0,0.00018964,2]
[358410218,1745089838047,-500.0,0.00018964,2]
[358410219,1745089838056,-500.0,0.00018964,2]
[358410220,1745089838066,-160.93830227,0.00018964,2]
[358410221,1745089838076,-500.0,0.00018964,2]
[358410222,1745089838086,-500.0,0.00018964,2]
[358410223,1745089838095,-500.0,0.00018964,2]
[358410224,1745089838104,-317.35658036,0.00018964,2]
[358410225,1745089838118,-182.64341964,0.00018964,2]
[358410226,1745089838127,-500.0,0.00018964,2]
[358410227,1745089838137,-500.0,0.00018964,2]
[358410228,1745089838146,-500.0,0.00018964,2]
[358410229,1745089838155,-500.0,0.00018964,2]
[358410230,1745089838165,-500.0,0.00018964,2]
[358410231,1745089838174,-84.73992217,0.00018964,2]
[358410232,1745089838212,-415.26007783,0.00018964,2]
[358410233,1745089838223,-276.16080934,0.00018964,2]
[358410234,1745089838233,-500.0,0.00018964,2]
[358410235,1745089838243,-500.0,0.00018964,2]
[358410236,1745089838255,-500.0,0.00018964,2]
[358410237,1745089838264,-500.0,0.00018964,2]
[358410238,1745089838274,-500.0,0.00018964,2]
[358410239,1745089838284,-500.0,0.00018964,2]
[358410240,1745089838294,-500.0,0.00018964,2]
[358410241,1745089838304,-9835.02110764,0.00018965,2]
[358410242,1745089838314,-498.05175966,0.00018965,2]
[358410243,1745089838325,-151.0,0.00018989,2]
[358410244,1745089838335,-1358.34,0.0001899,3]
[358410245,1745089838344,-679.17,0.0001899,3]
[358410246,1745089838354,-339.59,0.0001899,3]
[358410247,1745089838363,-169.79,0.0001899,3]
[358410248,1745089838372,-509.41,0.0001899,3]
[358410249,1745089838382,-262.13,0.00018999,2]
[358410250,1745089838391,-500.0,0.00018999,2]
[358410251,1745089838401,-209.41263038,0.00018999,2]
[358410252,1745089838411,-500.0,0.00018999,2]
[358410253,1745089838421,-16590.7943512,0.00019,2]
[358410254,1745089838433,-3273.91548045,0.00019,2]
[358410255,1745089838446,-68931.18012944,0.00019,2]
[358410256,1745089838670,-121394.9945364,0.00019,2]
[358410297,1745089845941,-350.20199531,0.00019,2]
[358410298,1745089845954,-15360.62581763,0.00019,2]
[358410299,1745089845964,-152.0,0.00019069,2]
[358410300,1745089845974,-157338.23420777,0.00019073,2]
[358410301,1745089845984,-500.0,0.00019073,2]
[358410302,1745089845994,-500.0,0.00019073,2]
[358410303,1745089846004,-500.0,0.00019073,2]
[358410304,1745089846013,-500.0,0.00019073,2]
[358410305,1745089846023,-287.01917886,0.00019073,2]
[358410306,1745089846033,-500.0,0.00019073,2]
[358410307,1745089846043,-500.0,0.00019173,2]
[358410308,1745089846053,-500.0,0.00019173,2]
[358410309,1745089846063,-502.75357485,0.00019173,2]
[358410310,1745089846072,-500.0,0.00019173,2]
[358410311,1745089846082,-500.0,0.00019173,2]
[358410312,1745089846092,-500.0,0.00019173,2]
[358410313,1745089846102,-500.0,0.00019173,2]
[358410314,1745089846112,-500.0,0.00019173,2]
[358410315,1745089846122,-500.0,0.00019173,2]
[358410316,1745089846132,-500.0,0.00019173,2]
[358410317,1745089846142,-500.0,0.00019173,2]
[358410318,1745089846152,-500.0,0.00019173,2]
[358410319,1745089846161,-500.0,0.00019173,2]
[358410320,1745089846171,-500.0,0.00019173,2]
[358410321,1745089846181,-500.0,0.00019173,2]
[358410322,1745089846191,-504.35344935,0.00019173,2]
[358410323,1745089846200,-500.0,0.00019173,2]
[358410324,1745089846209,-500.0,0.00019173,2]
[358410325,1745089846219,-637.65976904,0.00019173,2]
[358410326,1745089846229,-500.0,0.00019173,2]
[358410327,1745089846238,-500.0,0.00019173,2]
[358410328,1745089846248,-500.0,0.00019173,2]
[358410329,1745089846262,-500.0,0.00019173,2]
[358410330,1745089846272,-500.0,0.00019173,2]
[358410331,1745089846282,-500.0,0.00019173,2]
[358410332,1745089846292,-500.0,0.00019173,2]
[358410333,1745089846303,-500.0,0.00019173,2]
[358410334,1745089846316,-500.0,0.00019173,2]
[358410335,1745089846325,-409.33484651,0.00019173,2]
[358410336,1745089846335,-500.0,0.00019173,2]
[358410337,1745089846344,-500.0,0.00019173,2]
[358410338,1745089846354,-500.0,0.00019173,2]
[358410339,1745089846364,-500.0,0.00019173,2]
[358410340,1745089846373,-500.0,0.00019173,2]
[358410341,1745089846382,-500.0,0.00019173,2]
[358410342,1745089846391,-500.0,0.00019173,2]
[358410343,1745089846401,-543.94367697,0.00019173,2]
[358410344,1745089846410,-500.0,0.00019173,2]
[358410345,1745089846420,-500.0,0.00019173,2]
[358410346,1745089846429,-500.0,0.00019173,2]
[358410347,1745089846438,-500.0,0.00019173,2]
[358410348,1745089846448,-500.0,0.00019173,2]
[358410349,1745089846458,-500.0,0.00019173,2]
[358410350,1745089846468,-151.0,0.00019173,2]
[358410351,1745089846478,-151.0,0.00019173,2]
[358410352,1745089846488,-500.0,0.00019173,2]
[358410353,1745089846498,-151.0,0.00019173,2]
[358410354,1745089846509,-151.0,0.00019178,2]
[358410355,1745089846520,-500.0,0.00019178,2]
[358410356,1745089846529,-500.0,0.00019178,2]
[358410357,1745089846541,-500.0,0.00019178,2]
[358410358,1745089846551,-500.0,0.00019178,2]
[358410359,1745089846560,-500.0,0.00019178,2]
[358410360,1745089846570,-500.0,0.00019178,2]
[358410361,1745089846580,-500.0,0.00019178,2]
[358410362,1745089846591,-196.45748621,0.00019178,2]
[358410363,1745089846602,-1067.69,0.00019178,2]
[358410364,1745089846612,-500.0,0.00019178,2]
[358410365,1745089846622,-500.0,0.00019178,2]
[358410366,1745089846632,-500.0,0.00019178,2]
[358410367,1745089846641,-151.0,0.00019178,2]
[358410368,1745089846651,-151.0,0.00019178,2]
[358410369,1745089846661,-500.0,0.00019178,2]
[358410370,1745089846670,-559.59,0.00019178,2]
[358410371,1745089846680,-500.0,0.00019178,2]
[358410372,1745089846689,-605.45,0.00019178,2]
[358410373,1745089846699,-327.99914608,0.00019178,2]
[358410374,1745089846708,-500.0,0.00019178,2]
[358410375,1745089846718,-500.0,0.00019178,2]
[358410376,1745089846727,-1034.92,0.00019178,2]
[358410377,1745089846738,-500.0,0.00019178,2]
[358410378,1745089846748,-500.0,0.00019178,2]
[358410379,1745089846757,-500.0,0.00019178,2]
[358410380,1745089846766,-874.1,0.00019178,2]
[358410381,1745089846776,-556.1,0.00019178,2]
[358410382,1745089846785,-500.0,0.00019178,2]
[358410383,1745089846795,-500.0,0.00019178,2]
[358410384,1745089846804,-500.0,0.00019178,2]
[358410385,1745089846814,-164.902317,0.00019178,2]
[358410386,1745089846824,-567.75,0.00019178,2]
[358410387,1745089846833,-500.0,0.00019178,2]
[358410388,1745089846843,-727.02,0.00019178,2]
[358410389,1745089846853,-500.0,0.00019178,2]
[358410390,1745089846864,-500.0,0.00019178,2]
[358410391,1745089846875,-500.0,0.00019178,2]
[358410392,1745089846884,-500.0,0.00019178,2]
[358410393,1745089846894,-500.0,0.00019178,2]
[358410394,1745089846904,-500.0,0.00019178,2]
[358410395,1745089846914,-500.0,0.00019178,2]
[358410396,1745089846924,-714.86,0.00019178,2]
[358410397,1745089846933,-500.0,0.00019178,2]
[358410398,1745089846943,-500.0,0.00019178,2]
[358410399,1745089846953,-500.0,0.00019178,2]
[358410400,1745089846963,-500.0,0.00019178,2]
[358410401,1745089846972,-500.0,0.00019178,2]
[358410402,1745089846982,-863.89,0.00019178,2]
[358410403,1745089846992,-881.46,0.00019178,2]
[358410404,1745089847002,-151.0,0.00019178,2]
[358410405,1745089847012,-500.0,0.00019178,2]
[358410406,1745089847022,-151.0,0.00019178,2]
[358410407,1745089847032,-151.0,0.00019178,2]
[358410408,1745089847042,-1197.61,0.00019178,2]
[358410409,1745089847051,-500.0,0.00019178,2]
[358410410,1745089847060,-500.0,0.00019178,2]
[358410411,1745089847070,-500.0,0.00019178,2]
[358410412,1745089847080,-511.77,0.00019178,2]
[358410413,1745089847090,-500.0,0.00019178,2]
[358410414,1745089847099,-500.0,0.00019178,2]
[358410415,1745089847111,-500.0,0.00019178,2]
[358410416,1745089847120,-500.0,0.00019178,2]
[358410417,1745089847130,-182.62214182,0.00019178,2]
[358410418,1745089847140,-500.0,0.00019178,2]
[358410419,1745089847150,-729.77,0.00019178,2]
[358410420,1745089847159,-500.0,0.00019178,2]
[358410421,1745089847169,-500.0,0.00019178,2]
[358410422,1745089847179,-500.0,0.00019178,2]
[358410423,1745089847188,-500.0,0.00019178,2]
[358410424,1745089847197,-500.0,0.00019178,2]
[358410425,1745089847207,-211.158475,0.00019178,2]
[358410426,1745089847217,-1000.0,0.00019178,2]
[358410427,1745089847226,-500.0,0.00019178,2]
[358410428,1745089847236,-791.71,0.00019178,2]
[358410429,1745089847246,-151.0,0.00019178,2]
[358410430,1745089847257,-214.772998,0.00019178,2]
[358410431,1745089847267,-474.71270562,0.00019178,2]
[358410432,1745089847276,-928.79,0.00019178,2]
[358410433,1745089847286,-500.0,0.00019178,2]
[358410434,1745089847295,-254.0,0.00019178,2]
[358410435,1745089847305,-154.746375,0.00019178,2]
[358410436,1745089847317,-154.746375,0.00019178,2]
[358410437,1745089847328,-154.746375,0.00019178,2]
[358410438,1745089847339,-154.746375,0.00019178,2]
[358410439,1745089847349,-154.746375,0.00019178,2]
[358410440,1745089847359,-154.746375,0.00019178,2]
[358410441,1745089847369,-500.0,0.00019178,2]
[358410442,1745089847378,-500.0,0.00019178,2]
[358410443,1745089847388,-500.0,0.00019178,2]
[358410444,1745089847398,-944.98,0.00019178,2]
[358410445,1745089847407,-500.0,0.00019178,2]
[358410446,1745089847417,-500.0,0.00019178,2]
[358410447,1745089847427,-1388.7,0.00019178,2]
[358410448,1745089847436,-500.0,0.00019178,2]
[358410449,1745089847446,-580.07,0.00019178,2]
[358410450,1745089847455,-151.0,0.00019178,2]
[358410451,1745089847465,-151.0,0.00019178,2]
[358410452,1745089847475,-151.0,0.00019178,2]
[358410453,1745089847484,-500.0,0.00019178,2]
[358410454,1745089847493,-551.9,0.00019178,2]
[358410455,1745089847503,-500.0,0.00019178,2]
[358410456,1745089847512,-500.0,0.00019178,2]
[358410457,1745089847522,-151.620054,0.00019178,2]
[358410458,1745089847531,-738.66,0.00019178,2]
[358410459,1745089847541,-500.0,0.00019178,2]
[358410460,1745089847551,-500.0,0.00019178,2]
[358410461,1745089847560,-500.0,0.00019178,2]
[358410462,1745089847570,-639.35,0.00019178,2]
[358410463,1745089847580,-611.88,0.00019178,2]
[358410464,1745089847589,-500.0,0.00019178,2]
[358410465,1745089847599,-500.0,0.00019178,2]
[358410466,1745089847608,-260.6192,0.00019178,2]
[358410467,1745089847617,-260.6192,0.00019178,2]
[358410468,1745089847626,-260.6192,0.00019178,2]
[358410469,1745089847636,-260.6192,0.00019178,2]
[358410470,1745089847645,-260.6192,0.00019178,2]
[358410471,1745089847655,-260.6192,0.00019178,2]
[358410472,1745089847665,-500.0,0.00019178,2]
[358410473,1745089847675,-500.0,0.00019178,2]
[358410474,1745089847684,-750.95,0.00019178,2]
[358410475,1745089847694,-500.0,0.00019178,2]
[358410476,1745089847705,-500.0,0.00019178,2]
[358410477,1745089847714,-151.0,0.00019178,2]
[358410478,1745089847725,-151.0,0.00019178,2]
[358410479,1745089847734,-151.0,0.00019178,2]
[358410480,1745089847743,-846.88,0.00019178,2]
[358410481,1745089847753,-500.0,0.00019178,2]
[358410482,1745089847762,-500.0,0.00019178,2]
[358410483,1745089847772,-2016.96,0.00019178,2]
[358410484,1745089847782,-500.0,0.00019178,2]
[358410485,1745089847791,-783.61,0.00019178,2]
[358410486,1745089847801,-151.0,0.00019178,2]
[358410487,1745089847811,-151.0,0.00019178,2]
[358410488,1745089847822,-151.0,0.00019178,2]
[358410489,1745089847831,-583.83,0.00019178,2]
[358410490,1745089847841,-500.0,0.00019178,2]
[358410491,1745089847850,-500.0,0.00019178,2]
[358410492,1745089847862,-500.0,0.00019178,2]
[358410493,1745089847872,-500.0,0.00019178,2]
[358410494,1745089847882,-500.0,0.00019178,2]
[358410495,1745089847891,-500.0,0.00019178,2]
[358410496,1745089847901,-500.0,0.00019178,2]
[358410497,1745089847911,-151.0,0.00019178,2]
[358410498,1745089847921,-151.0,0.00019178,2]
[358410499,1745089847931,-151.0,0.00019178,2]
[358410500,1745089847942,-151.0,0.00019178,2]
[358410501,1745089847952,-151.0,0.00019178,2]
[358410502,1745089847962,-151.0,0.00019178,2]
[358410503,1745089847972,-500.0,0.00019178,2]
[358410504,1745089847981,-595.09,0.00019178,2]
[358410505,1745089847991,-500.0,0.00019178,2]
[358410506,1745089848000,-500.0,0.00019178,2]
[358410507,1745089848011,-500.0,0.00019178,2]
[358410508,1745089848020,-500.0,0.00019178,2]
[358410509,1745089848030,-1399.1,0.00019178,2]
[358410510,1745089848039,-500.0,0.00019178,2]
[358410511,1745089848050,-500.0,0.00019178,2]
[358410512,1745089848059,-500.0,0.00019178,2]
[358410513,1745089848070,-500.0,0.00019178,2]
[358410514,1745089848079,-500.0,0.00019178,2]
[358410515,1745089848088,-500.0,0.00019178,2]
[358410516,1745089848098,-513.22,0.00019178,2]
[358410517,1745089848110,-500.0,0.00019178,2]
[358410518,1745089848120,-759.25,0.00019178,2]
[358410519,1745089848130,-500.0,0.00019178,2]
[358410520,1745089848140,-500.0,0.00019178,2]
[358410521,1745089848149,-500.0,0.00019178,2]
[358410522,1745089848159,-500.0,0.00019178,2]
[358410523,1745089848168,-1419.95,0.00019178,2]
[358410524,1745089848179,-500.0,0.00019178,2]
[358410525,1745089848189,-560.21,0.00019178,2]
[358410526,1745089848199,-832.03,0.00019178,2]
[358410527,1745089848209,-500.0,0.00019178,2]
[358410528,1745089848219,-791.82,0.00019178,2]
[358410529,1745089848229,-500.0,0.00019178,2]
[358410530,1745089848239,-500.0,0.00019178,2]
[358410531,1745089848249,-500.0,0.00019178,2]
[358410532,1745089848263,-684.97,0.00019178,2]
[358410533,1745089848272,-500.0,0.00019178,2]
[358410534,1745089848282,-500.0,0.00019178,2]
[358410535,1745089848292,-952.72,0.00019178,2]
[358410536,1745089848303,-500.0,0.00019178,2]
[358410537,1745089848312,-228.09239185,0.00019178,2]
[358410538,1745089848322,-500.0,0.00019178,2]
[358410539,1745089848333,-500.0,0.00019178,2]
[358410540,1745089848342,-500.0,0.00019178,2]
[358410541,1745089848352,-854.58,0.00019178,2]
[358410542,1745089848364,-500.0,0.00019178,2]
[358410543,1745089848374,-500.0,0.00019178,2]
[358410544,1745089848384,-500.0,0.00019178,2]
[358410545,1745089848394,-500.0,0.00019178,2]
[358410546,1745089848405,-500.0,0.00019178,2]
[358410547,1745089848415,-500.0,0.00019178,2]
[358410548,1745089848426,-500.0,0.00019178,2]
[358410549,1745089848436,-694.66,0.00019178,2]
[358410550,1745089848446,-500.0,0.00019178,2]
[358410551,1745089848456,-500.0,0.00019178,2]
[358410552,1745089848466,-500.0,0.00019178,2]
[358410553,1745089848476,-914.71,0.00019178,2]
[358410554,1745089848486,-500.0,0.00019178,2]